bitfinex-derivatives/quotes_BTCF0:USTF0_20250912
["timestamp","ask_amount","ask_price","bid_price","bid_amount"]
[1757653862740,2.89738116,115470.0,115460.0,0.04145]
[1757653867441,2.89758116,115470.0,115460.0,0.04145]
[1757653869059,2.10942116,115470.0,115460.0,0.04145]
[1757653869257,2.89746116,115470.0,115460.0,0.04145]
[1757653870661,1.39746116,115470.0,115460.0,0.04145]
[1757653880468,1.39746116,115470.0,115460.0,0.11894193]
[1757653880866,1.39746116,115470.0,115460.0,0.04145]
[1757653892374,0.60942116,115470.0,115460.0,0.04145]
[1757653892575,1.39770116,115470.0,115460.0,0.04145]
[1757653893778,1.39770116,115470.0,115460.0,0.01911]
[1757653894478,1.39770116,115470.0,115460.0,0.04096]
[1757653898983,1.15008,115470.0,115460.0,0.04096]
[1757653899183,1.39770116,115470.0,115460.0,0.04096]
[1757653900887,1.03690116,115470.0,115460.0,0.04096]
[1757653901089,1.39770116,115470.0,115460.0,0.04096]
[1757653903387,1.39770116,115470.0,115460.0,0.01911]
[1757653904589,1.39770116,115470.0,115460.0,0.04096]
[1757653905388,0.60942116,115470.0,115460.0,0.04096]
[1757653905588,1.39794116,115470.0,115460.0,0.04096]
[1757653906687,0.60942116,115470.0,115460.0,0.04096]
[1757653906891,1.39790116,115470.0,115460.0,0.04096]
[1757653908390,1.39814116,115470.0,115460.0,0.04096]
[1757653909791,0.60942116,115470.0,115460.0,0.04096]
[1757653910090,1.39806116,115470.0,115460.0,0.04096]
[1757653912484,1.52192422,115470.0,115460.0,0.04096]
[1757653918195,1.15044,115470.0,115460.0,0.04096]
[1757653918397,1.52192422,115470.0,115460.0,0.04096]
[1757653919393,1.52148422,115470.0,115460.0,0.04096]
[1757653933004,0.73328422,115470.0,115460.0,0.04096]
[1757653933202,0.18674211,115470.0,115460.0,0.36845193]
[1757653933396,0.97474211,115470.0,115460.0,0.36845193]
[1757653935705,1.16048422,115470.0,115460.0,0.36845193]
[1757653935905,1.16048422,115470.0,115460.0,0.29096]
[1757653937902,1.16048422,115470.0,115460.0,0.36845193]
[1757653940108,1.16048422,115470.0,115460.0,0.29096]
[1757653941009,1.52128422,115470.0,115460.0,0.29096]
[1757653948714,1.52100422,115470.0,115460.0,0.29096]
[1757653949714,1.52100422,115470.0,115460.0,0.36845193]
[1757653952518,0.73328422,115470.0,115460.0,0.36845193]
[1757653952717,1.52080422,115470.0,115460.0,0.36845193]
[1757653953218,1.16000422,115470.0,115460.0,0.36845193]
[1757653953410,1.15992422,115470.0,115460.0,0.36845193]
[1757653953610,0.18674211,115470.0,115460.0,0.36845193]
[1757653953917,0.18674211,115470.0,115460.0,0.83750211]
[1757653954116,0.18674211,115470.0,115460.0,0.94613521]
[1757653956119,0.18674211,115470.0,115460.0,0.83750211]
[1757653956318,0.18674211,115470.0,115460.0,0.91530419]
[1757653956917,0.18674211,115470.0,115460.0,0.72956208]
[1757653957119,0.18674211,115470.0,115460.0,0.91530419]
[1757653958821,0.18674211,115470.0,115460.0,0.83750211]
[1757653959420,0.18674211,115470.0,115460.0,0.58750211]
[1757653960912,0.18674211,115470.0,115460.0,0.66530419]
[1757653962121,0.18674211,115470.0,115460.0,0.58750211]
[1757653963521,0.18674211,115470.0,115460.0,0.66530419]
[1757653965225,0.001,115470.0,115460.0,0.66530419]
[1757653965626,0.18674211,115470.0,115460.0,0.66530419]
[1757653966122,0.001,115470.0,115460.0,0.66530419]
[1757653966424,0.18674211,115470.0,115460.0,0.66530419]
[1757653966820,0.18674211,115470.0,115460.0,0.47956208]
[1757653967020,0.18674211,115470.0,115460.0,0.66530419]
[1757653972431,0.12479117,115470.0,115460.0,0.60335325]
[1757653975028,0.12479117,115470.0,115460.0,0.47956208]
[1757653975333,0.001,115470.0,115460.0,1.18797544]
[1757653975531,0.001,115470.0,115460.0,1.06418427]
[1757653975833,0.001,115470.0,115460.0,1.18797544]
[1757653977928,0.001,115470.0,115460.0,1.00797544]
[1757653978127,0.001,115470.0,115460.0,1.15797544]
[1757653979233,0.001,115470.0,115460.0,1.67118427]
[1757653979825,0.001,115470.0,115460.0,1.56255117]
[1757653981926,0.001,115470.0,115460.0,1.67118427]
[1757653986733,0.001,115470.0,115460.0,1.5473931]
[1757653986934,0.001,115470.0,115460.0,1.67118427]
[1757653990838,0.001,115470.0,115460.0,0.88418427]
[1757653991040,0.001,115470.0,115460.0,1.67110427]
[1757653992735,0.12479117,115470.0,115460.0,1.67110427]
[1757653993640,0.12479117,115470.0,115460.0,1.64028097]
[1757653993938,0.001,115470.0,115460.0,1.56247117]
[1757653994436,0.001,115470.0,115460.0,1.64028093]
[1757653997130,0.001,115470.0,115460.0,1.56247117]
[1757653997332,0.001,115470.0,115460.0,1.64028408]
[1757653999736,0.001,115470.0,115460.0,1.84626234]
[1757653999935,0.001,115470.0,115460.0,1.56247117]
[1757654001341,0.001,115470.0,115460.0,1.67110427]
[1757654001545,0.001,115470.0,115460.0,1.79489544]
[1757654001841,0.001,115470.0,115460.0,1.67110427]
[1757654002443,0.001,115470.0,115460.0,1.79489544]
[1757654002943,0.001,115470.0,115460.0,1.68626234]
[1757654003241,0.001,115470.0,115460.0,1.79489544]
[1757654004744,0.001,115470.0,115460.0,1.71489544]
[1757654005039,0.001,115470.0,115460.0,1.54489544]
[1757654005444,0.001,115470.0,115460.0,0.63418427]
[1757654005637,0.001,115470.0,115460.0,1.2972331]
[1757654005836,0.001,115470.0,115460.0,1.42102427]
[1757654008036,0.001,115470.0,115460.0,1.2972331]
[1757654008234,0.001,115470.0,115460.0,1.42102427]
[1757654010840,0.001,115470.0,115460.0,1.58618234]
[1757654011040,0.12379117,115480.0,115460.0,1.58618234]
[1757654011235,0.14363166,115490.0,115470.0,0.59659121]
[1757654011431,0.01984049,115490.0,115480.0,0.15792117]
[1757654011739,0.01984049,115490.0,115480.0,0.59659121]
[1757654011946,0.01984049,115490.0,115480.0,0.47280004]
[1757654012444,0.14363166,115490.0,115480.0,0.47280004]
[1757654013147,0.14363166,115490.0,115480.0,0.47380004]
[1757654013737,0.14363166,115490.0,115480.0,0.48236926]
[1757654014447,0.14363166,115490.0,115480.0,0.40449922]
[1757654018347,0.14363166,115490.0,115480.0,0.04369922]
[1757654019248,0.14363166,115490.0,115480.0,0.12156926]
[1757654019843,0.14363166,115490.0,115480.0,0.04369922]
[1757654020750,0.14363166,115490.0,115480.0,0.12156926]
[1757654022346,0.01984049,115490.0,115480.0,0.48236926]
[1757654022551,0.14363166,115490.0,115480.0,0.48236926]
[1757654027156,0.14363166,115490.0,115480.0,0.40449922]
[1757654030451,0.14363166,115490.0,115480.0,0.48236926]
[1757654032360,0.20548406,115490.0,115480.0,0.66801283]
[1757654035763,0.20548406,115490.0,115480.0,0.48236926]
[1757654036972,0.20548406,115490.0,115480.0,0.66801283]
[1757654037264,0.20548406,115490.0,115480.0,0.48236926]
[1757654037465,0.20548406,115490.0,115480.0,0.66801283]
[1757654038660,0.20548406,115490.0,115480.0,0.48236926]
[1757654042468,0.39112763,115490.0,115480.0,0.12156926]
[1757654044160,0.39112763,115490.0,115480.0,0.04369922]
[1757654045368,0.39112763,115490.0,115480.0,0.12156926]
[1757654045669,1.17780763,115490.0,115480.0,0.12156926]
[1757654047373,0.01984049,115490.0,115480.0,0.12156926]
[1757654047572,1.17780763,115490.0,115480.0,0.12156926]
[1757654050266,1.17780763,115490.0,115480.0,0.11300004]
[1757654050267,1.53860763,115490.0,115480.0,0.11300004]
[1757654050770,1.53860763,115490.0,115480.0,0.03513]
[1757654052571,0.75192763,115490.0,115480.0,0.03513]
[1757654052767,1.53860763,115490.0,115480.0,0.03513]
[1757654053870,1.17780763,115490.0,115480.0,0.03513]
[1757654054776,1.17780763,115490.0,115480.0,0.11300004]
[1757654056279,1.17780763,115490.0,115480.0,0.12172329]
[1757654056475,0.39112763,115490.0,115480.0,0.12172329]
[1757654056778,1.17780763,115490.0,115480.0,0.12172329]
[1757654057881,0.01984049,115490.0,115480.0,0.12172329]
[1757654058178,1.17780763,115490.0,115480.0,0.12172329]
[1757654058378,0.99216406,115490.0,115480.0,0.12172329]
[1757654058680,0.99216406,115490.0,115480.0,0.48252329]
[1757654064284,0.99216406,115490.0,115480.0,0.40465325]
[1757654064782,0.20548406,115490.0,115480.0,0.40465325]
[1757654064974,0.99212406,115490.0,115480.0,0.40465325]
[1757654069187,0.99212406,115490.0,115480.0,0.48252329]
[1757654076493,0.97228357,115490.0,115480.0,0.48252329]
[1757654079988,0.97224357,115490.0,115480.0,0.48252329]
[1757654080583,0.18564357,115490.0,115480.0,0.48252329]
[1757654080782,0.7866,115490.0,115480.0,0.48252329]
[1757654080997,0.97224357,115490.0,115480.0,0.48252329]
[1757654088200,0.97224357,115490.0,115480.0,0.40465325]
[1757654090100,0.97224357,115490.0,115480.0,0.59029682]
[1757654090300,1.16734909,115500.0,115490.0,0.0127]
[1757654090493,1.53863623,115500.0,115490.0,0.03392]
[1757654091587,1.53963623,115500.0,115490.0,0.03392]
[1757654094502,1.41586889,115500.0,115490.0,0.03392]
[1757654095693,1.41586889,115500.0,115490.0,0.11179004]
[1757654096100,1.41586889,115500.0,115490.0,0.03392]
[1757654098501,1.41586889,115500.0,115490.0,0.11179004]
[1757654098700,1.41586889,115500.0,115490.0,0.03392]
[1757654098904,1.41586889,115500.0,115490.0,0.11179004]
[1757654099401,1.41582889,115500.0,115490.0,0.11179004]
[1757654101104,1.41582889,115500.0,115490.0,0.03392]
[1757654104003,1.41578889,115500.0,115490.0,0.03392]
[1757654104311,0.62934889,115500.0,115490.0,0.03392]
[1757654104511,1.41578889,115500.0,115490.0,0.11179004]
[1757654104702,1.41578889,115500.0,115490.0,0.03392]
[1757654104903,1.41578889,115500.0,115490.0,0.11179004]
[1757654105510,1.41578889,115500.0,115490.0,0.03392]
[1757654105711,1.41578889,115500.0,115490.0,0.11179004]
[1757654105910,0.9112399,115500.0,115490.0,0.25316185]
[1757654106302,0.00104,115500.0,115490.0,0.86396185]
[1757654111420,0.1247999,115500.0,115490.0,0.86396185]
[1757654111613,0.1247999,115500.0,115490.0,0.74020195]
[1757654115119,0.1247999,115500.0,115490.0,0.86396185]
[1757654116018,0.1247999,115500.0,115490.0,0.74020195]
[1757654116218,0.1247999,115500.0,115490.0,0.86396185]
[1757654117516,0.1247999,115500.0,115490.0,0.78609181]
[1757654118622,0.00104,115500.0,115490.0,0.78609181]
[1757654118820,0.1247999,115500.0,115490.0,0.86396185]
[1757654119024,0.00104,115500.0,115490.0,0.86396185]
[1757654119414,0.00104,115500.0,115490.0,0.78609181]
[1757654123323,0.00104,115500.0,115490.0,0.86396185]
[1757654128821,0.00104,115500.0,115490.0,1.65020185]
[1757654131731,0.00104,115500.0,115490.0,0.86396185]
[1757654131931,0.00104,115500.0,115490.0,1.65016185]
[1757654132426,0.00104,115500.0,115490.0,1.68092491]
[1757654133229,0.00104,115500.0,115490.0,1.57229181]
[1757654133431,0.00104,115500.0,115490.0,1.68106814]
[1757654135426,0.00104,115500.0,115490.0,1.57229181]
[1757654136633,0.00104,115500.0,115490.0,1.68106814]
[1757654139430,0.00104,115500.0,115490.0,1.43106814]
[1757654139838,0.00104,115500.0,115490.0,1.32229181]
[1757654141933,0.00104,115500.0,115490.0,1.43106814]
[1757654143437,0.02003227,115520.0,115510.0,0.03547]
[1757654143634,0.14379217,115520.0,115510.0,0.82163]
[1757654144143,0.14379217,115520.0,115510.0,0.82383]
[1757654144535,0.14379217,115520.0,115510.0,0.82483]
[1757654144736,0.14579217,115520.0,115510.0,0.82483]
[1757654144936,0.14979217,115520.0,115510.0,0.82483]
[1757654145336,0.14979217,115520.0,115510.0,0.82475]
[1757654146049,0.14979217,115520.0,115510.0,0.03647]
[1757654147742,0.14979217,115520.0,115510.0,0.10480728]
[1757654148653,0.14979217,115520.0,115510.0,0.18243285]
[1757654149545,0.14979217,115520.0,115510.0,0.10480728]
[1757654152354,0.14979217,115520.0,115510.0,0.46560728]
[1757654153260,0.14979217,115520.0,115510.0,0.54323285]
[1757654153750,0.14979217,115520.0,115510.0,0.46560728]
[1757654154356,0.02603227,115520.0,115510.0,0.65115056]
[1757654154548,0.21157555,115520.0,115510.0,0.65115056]
[1757654156561,0.21157555,115520.0,115510.0,0.72877613]
[1757654157962,0.39711883,115520.0,115510.0,0.72877613]
[1757654158363,0.21157555,115520.0,115510.0,0.72877613]
[1757654158964,0.21157555,115520.0,115510.0,0.54323285]
[1757654159264,0.39711883,115520.0,115510.0,0.72877613]
[1757654160868,0.39711883,115520.0,115510.0,0.65115056]
[1757654161064,0.39711883,115520.0,115510.0,0.46560728]
[1757654161466,0.39711883,115520.0,115510.0,0.54323285]
[1757654162260,0.39711883,115520.0,115510.0,0.72877613]
[1757654162468,0.21157555,115520.0,115510.0,0.72877613]
[1757654162667,0.39711883,115520.0,115510.0,0.72877613]
[1757654164568,0.02603227,115520.0,115510.0,0.72877613]
[1757654164767,0.39711883,115520.0,115510.0,0.72877613]
[1757654165870,0.39711883,115520.0,115510.0,0.83755246]
[1757654166066,0.39711883,115520.0,115510.0,0.75992689]
[1757654167472,0.21157555,115520.0,115510.0,0.75992689]
[1757654167773,0.19158328,115520.0,115510.0,0.75992689]
[1757654168068,0.19158328,115520.0,115510.0,0.57438361]
[1757654168374,0.19158328,115520.0,115510.0,0.75992689]
[1757654170668,0.19158328,115520.0,115510.0,0.65115056]
[1757654173073,0.19158328,115520.0,115510.0,0.75992689]
[1757654174574,0.00604,115520.0,115510.0,0.75992689]
[1757654174763,0.19158328,115520.0,115510.0,0.75992689]
[1757654176461,0.19158328,115520.0,115510.0,0.65115056]
[1757654176976,0.19158328,115520.0,115510.0,0.75992689]
[1757654180076,0.19158328,115520.0,115510.0,0.65115056]
[1757654182068,0.19158328,115520.0,115510.0,0.75992689]
[1757654183772,0.37712656,115520.0,115510.0,0.57438361]
[1757654184079,0.19158328,115520.0,115510.0,0.75992689]
[1757654184271,0.19158328,115520.0,115510.0,0.83765629]
[1757654184570,0.19158328,115520.0,115510.0,0.72887996]
[1757654186275,0.19158328,115520.0,115510.0,0.65115056]
[1757654186478,0.19158328,115520.0,115510.0,0.75992689]
[1757654190980,0.19158328,115520.0,115510.0,0.65115056]
[1757654191168,0.19158328,115520.0,115510.0,0.72891402]
[1757654191779,0.19158328,115520.0,115510.0,0.65115056]
[1757654194784,0.19158328,115520.0,115510.0,0.46560728]
[1757654194986,0.19158328,115520.0,115510.0,0.65115056]
[1757654195180,0.19158328,115520.0,115510.0,0.72891402]
[1757654197689,0.37712656,115520.0,115510.0,1.32989074]
[1757654197884,0.37712656,115520.0,115510.0,1.25212728]
[1757654199285,0.37712656,115520.0,115510.0,0.10480728]
[1757654199486,0.92346984,115520.0,115510.0,0.08254728]
[1757654199688,1.95986984,115520.0,115510.0,0.01421]
[1757654200084,1.95986984,115520.0,115510.0,0.11408346]
[1757654200282,1.95986984,115520.0,115510.0,0.03632]
[1757654202286,1.95986984,115520.0,115510.0,0.01421]
[1757654205390,1.17346984,115520.0,115510.0,0.01421]
[1757654205590,1.96078984,115520.0,115510.0,0.01421]
[1757654208398,1.96078984,115520.0,115510.0,0.03632]
[1757654209399,1.17346984,115520.0,115510.0,0.03632]
[1757654209591,1.96062984,115520.0,115510.0,0.03632]
[1757654211100,1.17346984,115520.0,115510.0,0.03632]
[1757654211302,1.96050984,115520.0,115510.0,0.01421]
[1757654211796,1.77496656,115520.0,115510.0,0.01421]
[1757654211989,1.96050984,115520.0,115510.0,0.01421]
[1757654212693,1.96050984,115520.0,115510.0,0.03632]
[1757654214510,1.65135584,115520.0,115510.0,0.03632]
[1757654216713,1.65139584,115520.0,115510.0,0.03632]
[1757654217113,1.65127584,115520.0,115510.0,0.03632]
[1757654221916,0.36684,115520.0,115510.0,0.03632]
[1757654222109,0.36684,115520.0,115510.0,0.39712]
[1757654222110,0.91649792,115520.0,115510.0,0.39712]
[1757654222314,0.12977792,115520.0,115510.0,0.39712]
[1757654222517,0.7928,115520.0,115510.0,0.77085792]
[1757654222716,0.7928,115520.0,115510.0,0.84862138]
[1757654222717,0.91653792,115520.0,115510.0,0.84862138]
[1757654223216,0.91653792,115520.0,115510.0,0.64712]
[1757654226722,0.91653792,115520.0,115510.0,0.72488346]
[1757654226925,0.91653792,115520.0,115510.0,0.79444612]
[1757654227315,0.91629792,115520.0,115510.0,0.79444612]
[1757654231033,0.12977792,115520.0,115510.0,0.79444612]
[1757654231223,0.00604,115520.0,115510.0,0.91818404]
[1757654234027,0.00604,115520.0,115510.0,0.84042058]
[1757654237817,0.00604,115520.0,115510.0,0.71668266]
[1757654238022,0.00604,115520.0,115510.0,0.84042058]
[1757654238323,0.00604,115520.0,115510.0,0.80510058]
[1757654239327,0.00604,115520.0,115510.0,0.88286404]
[1757654239829,0.00604,115520.0,115510.0,1.66918404]
[1757654240927,0.00604,115520.0,115510.0,0.88286404]
[1757654241327,0.00604,115520.0,115510.0,1.66914404]
[1757654242030,4e-05,115560.0,115520.0,0.0865333]
[1757654242232,0.12377792,115560.0,115550.0,0.3608]
[1757654242433,0.24751584,115560.0,115550.0,0.3608]
[1757654242628,0.24751584,115560.0,115540.0,0.3608]
[1757654242830,0.12373792,115550.0,115540.0,0.43856346]
[1757654243332,0.12373792,115550.0,115540.0,0.47389346]
[1757654244126,0.12877792,115560.0,115550.0,0.03552]
[1757654244938,0.12877792,115560.0,115550.0,0.0439565]
[1757654245236,0.00304,115560.0,115550.0,0.52849442]
[1757654245422,0.00304,115560.0,115550.0,1.39801788]
[1757654245625,4e-05,115560.0,115550.0,1.39601788]
[1757654246427,0.00304,115560.0,115550.0,1.39701788]
[1757654246629,0.00304,115560.0,115550.0,1.46777434]
[1757654247032,0.00504,115560.0,115550.0,1.39001088]
[1757654247534,0.00504,115560.0,115550.0,2.25777434]
[1757654247738,0.00504,115560.0,115550.0,1.99151226]
[1757654248033,0.12377792,115580.0,115570.0,0.03552]
[1757654248228,4e-05,115580.0,115570.0,0.52005792]
[1757654248424,4e-05,115580.0,115570.0,1.31277792]
[1757654248839,4e-05,115580.0,115570.0,0.52005792]
[1757654249331,0.00304,115580.0,115570.0,0.52005792]
[1757654250037,4e-05,115580.0,115570.0,0.52005792]
[1757654250228,0.00204,115580.0,115570.0,0.52005792]
[1757654250429,0.00404,115580.0,115570.0,0.52005792]
[1757654252840,0.00404,115580.0,115570.0,0.69005792]
[1757654253738,0.00404,115580.0,115570.0,0.81379584]
[1757654255431,0.00404,115580.0,115570.0,0.39632]
[1757654255633,0.00404,115580.0,115570.0,0.79379584]
[1757654257639,4e-05,115600.0,115590.0,0.03552]
[1757654257844,4e-05,115600.0,115590.0,1.31277792]
[1757654258045,4e-05,115600.0,115590.0,0.52005792]
[1757654258442,4e-05,115600.0,115590.0,0.39632]
[1757654258644,4e-05,115600.0,115590.0,0.52005792]
[1757654258849,4e-05,115600.0,115590.0,0.52105792]
[1757654259341,4e-05,115600.0,115590.0,0.52987416]
[1757654260348,4e-05,115600.0,115590.0,0.59919497]
[1757654274159,4e-05,115600.0,115590.0,0.72293289]
[1757654275857,4e-05,115600.0,115590.0,1.08373289]
[1757654276154,4e-05,115600.0,115590.0,1.26112319]
[1757654276559,0.39191156,115630.0,115620.0,0.036]
[1757654276758,0.39191156,115630.0,115620.0,0.22119451]
[1757654276759,0.59950538,115630.0,115620.0,0.22119451]
[1757654277065,0.56839382,115630.0,115620.0,0.22119451]
[1757654277256,0.59950538,115630.0,115620.0,0.19847451]
[1757654277558,0.59950538,115630.0,115620.0,0.01328]
[1757654277955,0.60150538,115630.0,115620.0,0.01328]
[1757654278155,0.60150538,115630.0,115620.0,0.036]
[1757654278558,0.41631087,115630.0,115620.0,0.036]
[1757654278762,0.60350538,115630.0,115620.0,0.036]
[1757654279055,0.57239382,115630.0,115620.0,0.036]
[1757654280953,0.57239382,115630.0,115620.0,0.01328]
[1757654281154,1.00758833,115630.0,115610.0,0.036]
[1757654281354,0.73118902,115620.0,115610.0,0.036]
[1757654281661,1.17503931,115620.0,115610.0,0.036]
[1757654281862,1.54542833,115620.0,115610.0,0.22119451]
[1757654283452,1.52302902,115620.0,115610.0,0.22119451]
[1757654284159,1.52402902,115620.0,115610.0,0.22119451]
[1757654284361,1.15364,115620.0,115610.0,0.22119451]
[1757654284566,1.52502902,115620.0,115610.0,0.22119451]
[1757654285161,0.73318902,115620.0,115610.0,0.22119451]
[1757654285364,1.52478902,115620.0,115610.0,0.22119451]
[1757654286357,1.54685631,115620.0,115610.0,0.22119451]
[1757654287060,1.18605631,115620.0,115610.0,0.22119451]
[1757654287264,0.81566729,115620.0,115610.0,0.22119451]
[1757654287461,1.18605631,115620.0,115610.0,0.22119451]
[1757654288263,1.16398902,115620.0,115610.0,0.22119451]
[1757654288464,0.7936,115620.0,115610.0,0.22119451]
[1757654288663,1.16398902,115620.0,115610.0,0.22119451]
[1757654289065,1.18605736,115620.0,115610.0,0.22119451]
[1757654289257,1.16398902,115620.0,115610.0,0.22119451]
[1757654291865,0.97879451,115620.0,115610.0,0.22119451]
[1757654292072,1.16398902,115620.0,115610.0,0.036]
[1757654292265,1.16398902,115620.0,115610.0,0.22119451]
[1757654294578,1.15398902,115620.0,115610.0,0.22119451]
[1757654295169,1.15398902,115620.0,115610.0,0.036]
[1757654295363,0.73118902,115620.0,115610.0,0.01328]
[1757654295566,1.52158902,115620.0,115610.0,0.036]
[1757654295766,1.16074902,115620.0,115610.0,0.22119451]
[1757654295973,0.3608,115630.0,115620.0,0.01328]
[1757654296173,1.17322765,115630.0,115620.0,0.01328]
[1757654296377,1.54361667,115630.0,115620.0,0.01328]
[1757654297076,1.54561667,115630.0,115620.0,0.01328]
[1757654297476,1.54761667,115630.0,115620.0,0.01328]
[1757654298769,1.17722765,115630.0,115620.0,0.01328]
[1757654299074,1.54761667,115630.0,115620.0,0.01328]
[1757654299274,1.52554902,115630.0,115620.0,0.01328]
[1757654299475,1.54761652,115630.0,115620.0,0.01328]
[1757654299678,1.52554902,115630.0,115620.0,0.01328]
[1757654300372,0.54999451,115630.0,115620.0,0.22119451]
[1757654300570,1.34011451,115630.0,115620.0,0.22119451]
[1757654300972,0.54999451,115630.0,115620.0,0.22119451]
[1757654301167,1.15476,115630.0,115620.0,0.22119451]
[1757654301367,1.15476,115630.0,115620.0,0.036]
[1757654301575,1.33995451,115630.0,115620.0,0.036]
[1757654302380,0.54999451,115630.0,115620.0,0.036]
[1757654302578,1.33975451,115630.0,115620.0,0.22119451]
[1757654303277,1.33975451,115630.0,115620.0,0.036]
[1757654303580,1.33975451,115630.0,115620.0,0.22119451]
[1757654304281,0.54999451,115630.0,115620.0,0.22119451]
[1757654304472,1.33975451,115630.0,115620.0,0.036]
[1757654305583,0.54999451,115630.0,115620.0,0.036]
[1757654305882,1.33963451,115630.0,115620.0,0.036]
[1757654306879,1.33951451,115630.0,115620.0,0.036]
[1757654308585,1.15432,115630.0,115620.0,0.036]
[1757654308780,1.33939451,115630.0,115620.0,0.036]
[1757654309886,1.1542,115630.0,115620.0,0.036]
[1757654310187,1.33939451,115630.0,115620.0,0.036]
[1757654311689,0.54999451,115630.0,115620.0,0.036]
[1757654311890,1.33903451,115630.0,115620.0,0.036]
[1757654312189,1.15384,115630.0,115620.0,0.036]
[1757654312388,1.33903451,115630.0,115620.0,0.036]
[1757654314093,1.15384,115630.0,115620.0,0.036]
[1757654314391,1.33903451,115630.0,115620.0,0.036]
[1757654314983,1.54588389,115630.0,115620.0,0.01328]
[1757654315295,0.99988938,115630.0,115620.0,0.22001451]
[1757654316191,0.97787451,115630.0,115620.0,0.22001451]
[1757654316489,0.18919451,115630.0,115620.0,0.22001451]
[1757654316679,0.97787451,115630.0,115620.0,0.22001451]
[1757654317089,0.78968,115630.0,115620.0,0.22001451]
[1757654317285,0.79056,115630.0,115620.0,1.01600902]
[1757654317490,0.79056,115630.0,115620.0,1.09377248]
[1757654318191,0.97575451,115630.0,115620.0,1.09377248]
[1757654318489,0.97575451,115630.0,115620.0,0.90857797]
[1757654318890,0.97575451,115630.0,115620.0,0.83081451]
[1757654319382,0.97575451,115630.0,115620.0,0.58081451]
[1757654319784,0.97475451,115630.0,115620.0,0.58181451]
[1757654319984,0.97375451,115630.0,115620.0,0.58181451]
[1757654321186,0.97375451,115630.0,115620.0,0.39662]
[1757654321387,0.97375451,115630.0,115620.0,0.58181451]
[1757654322489,0.78856,115630.0,115620.0,0.58181451]
[1757654322696,0.97375451,115630.0,115620.0,0.58181451]
[1757654323485,0.78856,115630.0,115620.0,0.58181451]
[1757654323681,0.97375451,115630.0,115620.0,0.58181451]
[1757654324086,0.78856,115630.0,115620.0,0.76700902]
[1757654324287,0.97375451,115630.0,115620.0,0.76700902]
[1757654326305,0.78856,115630.0,115620.0,0.76700902]
[1757654326696,0.97375451,115630.0,115620.0,0.76700902]
[1757654327187,0.97375451,115630.0,115620.0,0.58181451]
[1757654327596,0.97375451,115630.0,115620.0,0.39662]
[1757654327991,0.97291451,115630.0,115620.0,0.58181451]
[1757654328493,0.78772,115630.0,115620.0,0.39662]
[1757654328691,0.97283451,115630.0,115620.0,0.58181451]
[1757654328891,0.78764,115630.0,115620.0,0.76700902]
[1757654329298,0.56595774,115640.0,115630.0,0.03474]
[1757654329596,1.35355774,115640.0,115630.0,0.21993451]
[1757654330485,1.35355774,115640.0,115630.0,0.03474]
[1757654330694,1.35355774,115640.0,115630.0,0.21993451]
[1757654330894,0.80856323,115640.0,115630.0,0.21993451]
[1757654331096,0.99475774,115640.0,115630.0,0.21993451]
[1757654331793,0.80956323,115640.0,115630.0,0.21993451]
[1757654331993,0.99475774,115640.0,115630.0,0.21993451]
[1757654332899,0.99475774,115640.0,115630.0,0.22846179]
[1757654333486,1.35555774,115640.0,115630.0,0.22846179]
[1757654333687,1.35555774,115640.0,115630.0,0.21993451]
[1757654334092,0.75315225,115640.0,115630.0,0.21993451]
[1757654334401,1.54043225,115640.0,115630.0,0.21993451]
[1757654334694,1.54043225,115640.0,115630.0,0.03474]
[1757654334900,1.79043225,115640.0,115620.0,0.03514]
[1757654335095,0.54599451,115630.0,115620.0,0.03514]
[1757654337705,0.3608,115630.0,115620.0,0.03614]
[1757654337904,0.54599451,115630.0,115620.0,0.03614]
[1757654338505,0.48427865,115630.0,115620.0,0.03614]
[1757654341204,0.48431865,115630.0,115620.0,0.03614]
[1757654343914,1.27119865,115630.0,115620.0,0.03614]
[1757654345814,1.14772,115630.0,115620.0,0.03614]
[1757654346118,1.27119865,115630.0,115620.0,0.03614]
[1757654346522,1.27119865,115630.0,115620.0,0.11390346]
[1757654346912,1.27119865,115630.0,115620.0,0.03614]
[1757654347708,0.36084,115630.0,115620.0,0.55082378]
[1757654347913,0.36084,115630.0,115620.0,0.50510859]
[1757654348119,0.36084,115630.0,115620.0,0.62858724]
[1757654348322,4e-05,115630.0,115620.0,0.50510859]
[1757654348514,0.36084,115630.0,115620.0,0.50510859]
[1757654350312,1.1492,115630.0,115620.0,0.50510859]
[1757654351920,1.1492,115630.0,115620.0,0.38162994]
[1757654352113,1.1492,115630.0,115620.0,0.42734513]
[1757654353223,1.27267865,115630.0,115620.0,0.30386648]
[1757654353425,1.27267865,115630.0,115620.0,0.42734513]
[1757654353619,1.27267865,115630.0,115620.0,0.53612146]
[1757654354326,1.27267865,115630.0,115620.0,0.42734513]
[1757654354527,1.27267865,115630.0,115620.0,0.30386648]
[1757654354718,1.1492,115630.0,115620.0,0.42734513]
[1757654354914,1.27267865,115630.0,115620.0,0.30386648]
[1757654355118,1.27267865,115630.0,115620.0,0.42734513]
[1757654356020,1.1492,115630.0,115620.0,0.42734513]
[1757654356228,1.27267865,115630.0,115620.0,0.42734513]
[1757654356426,1.27267865,115630.0,115620.0,0.50495889]
[1757654358329,1.27267865,115630.0,115620.0,0.38148024]
[1757654358523,1.27267865,115630.0,115620.0,0.50495889]
[1757654360024,1.27267865,115630.0,115620.0,0.38148024]
[1757654360224,1.27267865,115630.0,115620.0,0.50495889]
[1757654361028,1.27267865,115630.0,115620.0,0.38148024]
[1757654361626,1.27267865,115630.0,115620.0,0.30386648]
[1757654361828,1.27267865,115630.0,115620.0,0.38148024]
[1757654362231,0.36084,115630.0,115620.0,0.25495889]
[1757654363127,0.36084,115630.0,115620.0,0.17734513]
[1757654363530,0.36084,115630.0,115620.0,0.25496445]
[1757654363730,1.14816,115630.0,115620.0,0.25496445]
[1757654363931,0.36084,115630.0,115620.0,0.25496445]
[1757654365932,4e-05,115630.0,115620.0,0.25496445]
[1757654366729,4e-05,115630.0,115620.0,0.1314858]
[1757654367121,0.12351865,115630.0,115620.0,0.1314858]
[1757654367631,0.12351865,115630.0,115620.0,0.05386648]
[1757654369031,0.12351865,115630.0,115620.0,0.17734513]
[1757654369229,4e-05,115630.0,115620.0,0.17734513]
[1757654369431,0.12351865,115630.0,115620.0,0.17734513]
[1757654369734,0.91083865,115630.0,115620.0,0.05386648]
[1757654370138,0.91083865,115630.0,115620.0,0.17734513]
[1757654370338,0.91067865,115630.0,115620.0,0.17734513]
[1757654370933,0.91067865,115630.0,115620.0,0.05386648]
[1757654371139,0.91067865,115630.0,115620.0,0.17734513]